fUSD/lending_fUSD_20240523
["ID","MTS","AMOUNT","RATE_DAILY","PERIOD"]
[327789117,1716481834592,-962.52,0.00023797,2]
[327789118,1716481834601,-544.72,0.00023797,2]
[327789119,1716481834610,-500.0,0.00023797,2]
[327789120,1716481834619,-692.91,0.00023797,2]
[327789121,1716481834629,-500.0,0.00023797,2]
[327789122,1716481834638,-500.0,0.00023797,2]
[327789123,1716481834648,-500.0,0.00023797,2]
[327789124,1716481834657,-500.0,0.00023797,2]
[327789125,1716481834667,-521.91,0.00023797,2]
[327789126,1716481834676,-1027.93,0.00023797,2]
[327789127,1716481834686,-733.43,0.00023797,2]
[327789128,1716481834698,-544.29,0.00023797,2]
[327789129,1716481834707,-335.59463883,0.00023797,2]
[327789130,1716481834948,-304.44536117,0.00023797,2]
[327789131,1716481834957,-144.3033977,0.00023797,2]
[327789132,1716481834969,-334.50747262,0.00023797,2]
[327789133,1716481834985,-21.18912968,0.00023797,2]
[327789134,1716481834995,-500.0,0.00023797,2]
[327789135,1716481835004,-405.98677407,0.00023797,2]
[327789136,1716481835015,-94.01322593,0.00023797,2]
[327789137,1716481835025,-500.0,0.00023798,2]
[327789138,1716481835034,-199.22267891,0.00023798,2]
[327789139,1716481835044,-206.36409516,0.00023798,2]
[327789140,1716481835066,-301.35949236,0.00023798,2]
[327789141,1716481835076,-500.0,0.00023798,2]
[327789142,1716481835089,-211.66250764,0.00023798,2]
[327789143,1716481835101,-288.33749236,0.00023798,2]
[327789144,1716481835114,-500.0,0.00023798,2]
[327789145,1716481835126,-625.47,0.00023798,2]
[327789146,1716481835135,-510.77352219,0.00023798,2]
[327789147,1716481835144,-500.0,0.00023798,2]
[327789148,1716481835154,-500.0,0.00023798,2]
[327789149,1716481835165,-500.0,0.00023798,2]
[327789150,1716481835175,-500.0,0.00023798,2]
[327789151,1716481835184,-500.0,0.00023798,2]
[327789152,1716481835195,-436.93,0.00023798,2]
[327789153,1716481835206,-500.0,0.00023798,2]
[327789154,1716481835216,-500.0,0.00023798,2]
[327789155,1716481835225,-500.0,0.00023798,2]
[327789156,1716481835235,-369.6780695,0.00023798,2]
[327789157,1716481835247,-427.90032572,0.00023798,2]
[327789158,1716481835259,-69.55160478,0.00023798,2]
[327789159,1716481835268,-500.0,0.00023798,2]
[327789160,1716481835278,-248.80235602,0.00023798,2]
[327789167,1716481837665,-508.14303139,0.00023696,2]
[327789168,1716481837677,-526.65064227,0.00023696,2]
[327789169,1716481837700,-351.20497352,0.00023696,2]
[327789170,1716481837712,-753.50015,0.00023696,2]
[327789171,1716481837728,-16000.36032,0.00023696,2]
[327789172,1716481837863,-645.95,0.00023696,2]
[327789173,1716481837876,-915.94563643,0.00023696,2]
[327789174,1716481837890,-2440.62941193,0.00023696,2]
[327789175,1716481837922,-526.16776025,0.00023696,2]
[327789176,1716481837955,-1834.02686133,0.00023696,2]
[327789400,1716481840281,-3797.99999996,0.00023696,2]
[327789402,1716481840295,-4402.80832557,0.00023696,2]
[327789467,1716481841059,-983.34596549,0.00023696,2]
[327789573,1716481843485,-1352.92487693,0.00023696,2]
[327789574,1716481843530,-10206.19314002,0.00023696,2]
[327789575,1716481843540,-500.0,0.00023796,2]
[327789576,1716481843549,-1183.9,0.00023796,2]
[327789577,1716481843560,-500.0,0.00023797,2]
[327789578,1716481843570,-251.19764398,0.00023798,2]
[327789579,1716481843580,-500.0,0.00023798,2]
[327789580,1716481843590,-640.19324703,0.00023798,2]
[327789581,1716481843599,-768.11,0.00023798,2]
[327789582,1716481843609,-500.0,0.00023798,2]
[327789583,1716481843618,-500.0,0.00023798,2]
[327789584,1716481843628,-335.85263518,0.00023798,2]
[327789585,1716481843637,-500.0,0.00023798,2]
[327789586,1716481843647,-154.52979958,0.000238,2]
[327789587,1716481843656,-1081.06,0.00023821,2]
[327789588,1716481843666,-533.68,0.00023821,2]
[327789589,1716481843676,-500.0,0.00023821,2]
[327789590,1716481843686,-500.0,0.00023821,2]
[327789591,1716481843695,-500.0,0.00023821,2]
[327789592,1716481843707,-500.0,0.00023821,2]
[327789593,1716481843717,-500.0,0.00023821,2]
[327789594,1716481843727,-500.0,0.00023821,2]
[327789595,1716481843736,-500.0,0.00023821,2]
[327789596,1716481843746,-739.21,0.00023821,2]
[327789597,1716481843755,-500.0,0.00023822,2]
[327789598,1716481843765,-500.0,0.00023822,2]
[327789599,1716481843774,-500.0,0.00023822,2]
[327789600,1716481843784,-500.0,0.00023822,2]
[327789601,1716481843794,-500.0,0.00023822,2]
[327789602,1716481843804,-624.12,0.00023822,2]
[327789603,1716481843813,-500.0,0.00023822,2]
[327789604,1716481843824,-608.62,0.00023822,2]
[327789605,1716481843833,-500.0,0.00023822,2]
[327789606,1716481843843,-500.0,0.00023822,2]
[327789607,1716481843852,-579.9,0.00023822,2]
[327789608,1716481843861,-500.0,0.00023822,2]
[327789609,1716481843871,-500.0,0.00023822,2]
[327789610,1716481843881,-507.35471958,0.00023822,2]
[327789611,1716481843890,-262.58182978,0.00023822,2]
[327789612,1716481843900,-500.0,0.00023822,2]
[327789613,1716481843909,-590.81,0.00023822,2]
[327789614,1716481843918,-150.9164,0.00023822,2]
[327789615,1716481843927,-500.0,0.00023822,2]
[327789616,1716481843937,-596.73,0.00023822,2]
[327789617,1716481843946,-500.0,0.00023822,2]
[327789618,1716481843957,-500.0,0.00023822,2]
[327789619,1716481843966,-500.0,0.00023822,2]
[327789620,1716481843975,-920.89,0.00023822,2]
[327789621,1716481843984,-500.0,0.00023822,2]
[327789622,1716481843995,-500.0,0.00023822,2]
[327789623,1716481844004,-500.0,0.00023822,2]
[327789624,1716481844013,-500.0,0.00023822,2]
[327789625,1716481844024,-500.0,0.00023822,2]
[327789626,1716481844034,-500.0,0.00023822,2]
[327789627,1716481844044,-500.0,0.00023822,2]
[327789629,1716481844053,-500.0,0.00023822,2]
[327789631,1716481844063,-500.0,0.00023822,2]
[327789633,1716481844073,-500.0,0.00023822,2]
[327789635,1716481844084,-500.0,0.00023822,2]
[327789637,1716481844095,-500.0,0.00023822,2]
[327789639,1716481844106,-500.0,0.00023822,2]
[327789641,1716481844116,-500.0,0.00023822,2]
[327789642,1716481844126,-500.0,0.00023822,2]
[327789643,1716481844136,-322.04689504,0.00023822,2]
[327789644,1716481844146,-500.0,0.00023822,2]
[327789645,1716481844155,-150.0,0.00023822,2]
[327789646,1716481844164,-500.0,0.00023822,2]
[327789647,1716481844175,-500.0,0.00023822,2]
[327789648,1716481844184,-500.0,0.00023822,2]
[327789649,1716481844194,-500.0,0.00023822,2]
[327789650,1716481844204,-783.86,0.00023822,2]
[327789651,1716481844214,-500.0,0.00023822,2]
[327789652,1716481844223,-500.0,0.00023822,2]
[327789653,1716481844233,-500.0,0.00023822,2]
[327789654,1716481844242,-500.0,0.00023822,2]
[327789655,1716481844251,-737.03,0.00023822,2]
[327789656,1716481844260,-2501.63,0.00023822,2]
[327789657,1716481844270,-524.4,0.00023822,2]
[327789659,1716481844280,-500.0,0.00023822,2]
[327789661,1716481844290,-257.33,0.00023822,2]
[327789663,1716481844300,-516.35,0.00023822,2]
[327789664,1716481844310,-500.0,0.00023822,2]
[327789665,1716481844320,-500.0,0.00023822,2]
[327789666,1716481844330,-500.0,0.00023822,2]
[327789667,1716481844340,-500.0,0.00023822,2]
[327789668,1716481844350,-500.0,0.00023822,2]
[327789669,1716481844360,-500.0,0.00023822,2]
[327789670,1716481844370,-500.0,0.00023822,2]
[327789671,1716481844380,-1623.57,0.00023822,2]
[327789672,1716481844390,-500.0,0.00023822,2]
[327789673,1716481844400,-179.8162954,0.00023822,2]
[327789674,1716481844410,-712.92,0.00023822,2]
[327789675,1716481844420,-500.0,0.00023822,2]
[327789676,1716481844429,-500.0,0.00023822,2]
[327789677,1716481844439,-500.0,0.00023822,2]
[327789679,1716481844450,-500.0,0.00023822,2]
[327789681,1716481844460,-500.0,0.00023822,2]
[327789683,1716481844470,-500.0,0.00023822,2]
[327789684,1716481844480,-500.0,0.00023822,2]
[327789685,1716481844489,-500.0,0.00023822,2]
[327789686,1716481844499,-528.46,0.00023822,2]
[327789687,1716481844509,-725.75,0.00023822,2]
[327789688,1716481844520,-421.02,0.00023822,2]
[327789689,1716481844531,-253.10572748,0.00023897,2]
[327789690,1716481844542,-7500.0,0.000239,2]
[327789691,1716481844552,-194.54142972,0.000239,2]
[327789692,1716481844563,-26281.2485,0.000239,2]
[327789693,1716481844573,-1141.0,0.000239,2]
[327789694,1716481844583,-2828.88942831,0.000239,2]
[327789695,1716481844593,-5434.3652162,0.000239,2]
[327789696,1716481844604,-165.23647074,0.000239,2]
[327789697,1716481844613,-150.0,0.000239,4]
[327789698,1716481844624,-150.0,0.00023928,2]
[327789699,1716481844634,-500.0,0.00023929,2]
[327789700,1716481844644,-150.0,0.00023958,2]
[327789701,1716481844655,-5978.73394614,0.00023965,2]
[327789702,1716481844665,-151.66,0.0002399,2]
[327789703,1716481844676,-151.66,0.0002399,2]
[327789704,1716481844687,-151.66,0.0002399,2]
[327789705,1716481844697,-151.66,0.0002399,2]
[327789706,1716481844709,-151.66,0.0002399,2]
[327789707,1716481844718,-151.66,0.0002399,2]
[327789708,1716481844728,-151.66,0.0002399,2]
[327789709,1716481844737,-151.66,0.0002399,2]
[327789710,1716481844747,-151.66,0.0002399,2]
[327789711,1716481844756,-151.66,0.0002399,2]
[327789712,1716481844768,-151.66,0.0002399,2]
[327789713,1716481844778,-151.66,0.0002399,2]
[327789714,1716481844788,-151.66,0.0002399,2]
[327789715,1716481844798,-418.34669064,0.00023996,2]
[327789716,1716481844808,-500.0,0.00023997,2]
[327789717,1716481844818,-500.0,0.00023997,2]
[327789718,1716481844826,-515.16684383,0.00023997,2]
[327789719,1716481844836,-514.53430858,0.00023997,2]
[327789720,1716481844846,-500.0,0.00023997,2]
[327789721,1716481844857,-506.89,0.00023997,2]
[327789722,1716481844867,-512.90312661,0.00023997,2]
[327789723,1716481844877,-500.0,0.00023997,2]
[327789724,1716481844887,-500.0,0.00023997,2]
[327789725,1716481844898,-486.55032843,0.00023997,2]
[327789726,1716481844908,-500.0,0.00023997,2]
[327789727,1716481844918,-500.0,0.00023997,2]
[327789728,1716481844940,-513.00592073,0.00023997,2]
[327789729,1716481844954,-500.0,0.00023997,2]
[327789730,1716481844964,-163.10041042,0.00023997,2]
[327789731,1716481844975,-301.38975892,0.00023997,2]
[327789732,1716481844986,-486.83514527,0.00023997,2]
[327789733,1716481844997,-500.0,0.00023997,2]
[327789734,1716481845008,-418.87841725,0.00023997,2]
[327789735,1716481845019,-500.0,0.00023997,2]
[327789736,1716481845029,-590.55,0.00023997,2]
[327789737,1716481845039,-500.0,0.00023997,2]
[327789738,1716481845049,-500.0,0.00023997,2]
[327789739,1716481845060,-173.94340239,0.00023997,2]
[327789740,1716481845071,-500.0,0.00023997,2]
[327789741,1716481845084,-500.0,0.00023997,2]
[327789742,1716481845095,-1055.05,0.00023997,2]
[327789743,1716481845106,-500.0,0.00023997,2]
[327789744,1716481845118,-500.0,0.00023997,2]
[327789745,1716481845131,-179.26572513,0.00023997,2]
[327789746,1716481845142,-500.0,0.00023997,2]
[327789747,1716481845152,-1038.35,0.00023997,2]
[327789748,1716481845162,-500.0,0.00023997,2]
[327789749,1716481845174,-500.0,0.00023997,2]
[327789750,1716481845184,-916.4,0.00023997,2]
[327789751,1716481845194,-500.0,0.00023997,2]
[327789752,1716481845206,-500.0,0.00023997,2]
[327789753,1716481845215,-500.0,0.00023997,2]
[327789754,1716481845225,-500.0,0.00023997,2]
[327789755,1716481845236,-500.0,0.00023997,2]
[327789756,1716481845246,-500.0,0.00023997,2]
[327789757,1716481845256,-500.0,0.00023997,2]
[327789758,1716481845266,-576.04,0.00023997,2]
[327789759,1716481845277,-500.0,0.00023997,2]
[327789760,1716481845287,-331.88881576,0.00023997,2]
[327789761,1716481845297,-500.0,0.00023997,2]
[327789762,1716481845308,-500.0,0.00023997,2]
[327789763,1716481845317,-500.0,0.00023997,2]
[327789764,1716481845327,-500.0,0.00023997,2]
[327789765,1716481845338,-749.09,0.00023997,2]
[327789766,1716481845348,-206.16857189,0.00023997,2]
[327789767,1716481845358,-500.0,0.00023997,2]
[327789768,1716481845367,-500.0,0.00023997,2]
[327789769,1716481845377,-500.0,0.00023997,2]
[327789770,1716481845386,-563.26581225,0.00023997,2]
[327789771,1716481845396,-500.0,0.00023997,2]
[327789772,1716481845405,-500.0,0.00023997,2]
[327789773,1716481845414,-500.0,0.00023997,2]
[327789774,1716481845423,-7111.49,0.00023997,2]
[327789775,1716481845432,-500.0,0.00023997,2]
[327789776,1716481845442,-500.0,0.00023997,2]
[327789777,1716481845451,-500.0,0.00023997,2]
[327789778,1716481845461,-500.0,0.00023997,2]
[327789779,1716481845470,-500.0,0.00023997,2]
[327789780,1716481845479,-500.0,0.00023997,2]
[327789781,1716481845489,-500.0,0.00023997,2]
[327789782,1716481845498,-818.34,0.00023997,2]
[327789783,1716481845507,-500.0,0.00023997,2]
[327789784,1716481845517,-500.0,0.00023997,2]
[327789786,1716481845527,-1537.85,0.00023997,2]
[327789788,1716481845537,-500.0,0.00023997,2]
[327789789,1716481845546,-379.17281253,0.00023997,2]
[327789791,1716481845556,-500.0,0.00023997,2]
[327789792,1716481845565,-1332.04527085,0.00023998,2]
[327789793,1716481845575,-1095.19911458,0.00023998,2]
[327789794,1716481845584,-5110.6726212,0.00023998,2]
[327789795,1716481845594,-478.62455,0.00023999,2]
[327789796,1716481845603,-374.86,0.00023999,2]
[327789797,1716481845612,-454.58721055,0.00023999,2]
[327789798,1716481845620,-500.0,0.00023999,2]
[327789799,1716481845630,-285.74684436,0.00023999,2]
[327789800,1716481845639,-572.0,0.00024,2]
[327789801,1716481845649,-100118.14545337,0.00024,13]
[327789802,1716481845659,-214546.64674646,0.00024,5]
[327789803,1716481846192,-140930.36263273,0.00024,5]
[327789804,1716481846206,-3688.72984018,0.00024,5]
[327789805,1716481846217,-263.64498314,0.00024,5]
[327789806,1716481846228,-455.968116,0.00024,5]
[327789807,1716481846286,-5601.29375481,0.00024,5]
[327789808,1716481846306,-1654.000128,0.00024,5]
[327789809,1716481846321,-1396.16,0.00024,5]
[327789812,1716481961231,152.27,0.00027068,30]
[327789813,1716482024516,436949.08714514,0.00013,2]
[327789814,1716482137367,14464.24641505,0.00017259,2]
[327789815,1716482367436,2750.0,0.00019,2]
[327789816,1716482402801,150.0,0.00019,2]
[327789817,1716482402995,192.31875546,0.00019,2]
[327789818,1716482442860,152.27,0.00027068,30]
[327789820,1716482476922,1314.92,0.00019451,2]
[327789821,1716482478379,177.48,0.00013973,2]
[327789892,1716482950489,152.27,0.00027068,30]
[327789893,1716482959105,-822.19,0.0002002,2]
[327789894,1716482959128,-564.0,0.000203,3]
[327789895,1716482959154,-177.48,0.00020447,2]
[327789896,1716482959175,-1267.94997621,0.00021,2]
[327789904,1716483032666,-1295.95865689,0.00021,2]
[327789905,1716483032680,-236.0913669,0.00021,2]
[327789906,1716483032689,-434.36675939,0.00021879,2]
[327789907,1716483032701,-265.64324061,0.00021879,2]
[327789908,1716483032711,-200.0,0.00021884,2]
[327789909,1716483032721,-434.73178493,0.00021884,2]
[327789910,1716483032734,-65.25821507,0.00021884,2]
[327789911,1716483032744,-250.0,0.00021909,2]
[327789912,1716483032754,-381.51610095,0.0002191,2]
[327789913,1716483032766,-452.75892829,0.0002191,2]
[327789914,1716483032778,-1211.81802458,0.0002191,2]
[327789915,1716483032789,-448.12958754,0.0002191,2]
[327789916,1716483032800,-7450.39419363,0.0002191,2]
[327789917,1716483032812,-387.51100691,0.0002191,2]
[327789918,1716483032828,-621.28822806,0.0002191,2]
[327789919,1716483032840,-5242.45393004,0.0002191,2]
[327789920,1716483032850,-2000.0,0.00021918,2]
[327789921,1716483032859,-1806.21,0.00021922,2]
[327789922,1716483032869,-893.71,0.00021931,2]
[327789923,1716483032879,-912.78,0.00021931,2]
[327789924,1716483032890,-1852.42,0.0002194,2]
[327789925,1716483032899,-727.13,0.00021948,2]
[327789926,1716483032910,-250.0,0.00021971,2]
[327789927,1716483032920,-151.31470383,0.00022142,2]
[327789928,1716483032930,-822.19,0.00022284,2]
[327789929,1716483032939,-259.66,0.00022286,2]
[327789930,1716483032950,-1000.0,0.00022305,2]
[327789931,1716483032960,-1294.04,0.00022323,2]
[327789932,1716483032971,-257.4,0.00022384,2]
[327789933,1716483032980,-153.92769206,0.00022391,2]
[327789934,1716483032990,-237.33,0.00022788,2]
[327789935,1716483032999,-267.29,0.00022788,2]
[327789936,1716483033009,-150.0,0.00022789,2]
[327789937,1716483033018,-151.842,0.00022789,2]
[327789938,1716483033029,-151.134,0.00022789,2]
[327789939,1716483033038,-150.0,0.00022789,2]
[327789940,1716483033047,-245.678,0.00022789,2]
[327789941,1716483033057,-151.555,0.00022789,2]
[327789943,1716483033067,-154.688,0.00022789,2]
[327789945,1716483033076,-150.298,0.00022789,2]
[327789946,1716483033085,-155.06,0.00022959,2]
[327789947,1716483033096,-2850.0,0.00023,2]
[327789948,1716483033106,-167.01,0.00023242,2]
[327789949,1716483033115,-153.55433201,0.00023322,2]
[327789950,1716483033125,-150.0,0.00023324,2]
[327789951,1716483033135,-153.92769206,0.00023583,2]
[327789952,1716483033143,-210.7626,0.00023597,2]
[327789953,1716483033153,-5507.69045884,0.00023621,2]
[327789954,1716483033162,-283.80213422,0.00023621,2]
[327789955,1716483033173,-283.80213421,0.0002369,2]
[327789956,1716483033183,-500.0,0.00023697,2]
[327789957,1716483033191,-17559.69867141,0.00023697,2]
[327789958,1716483033204,-689.30241408,0.00023697,2]
[327789959,1716483033214,-650.01339646,0.00023697,2]
[327789960,1716483033225,-2245.43580064,0.00023697,2]
[327789961,1716483033241,-3071.91999903,0.00023697,2]
[327789962,1716483033251,-286.18192272,0.00023697,2]
[327789963,1716483033271,-2499.33301702,0.00023697,2]
[327789964,1716483033283,-434.33736611,0.00023697,2]
[327789965,1716483033315,-1009.02021012,0.00023697,2]
[327789966,1716483033326,-4698.92261733,0.00023697,2]
[327789968,1716483038014,-150.0,0.00022789,2]
[327789969,1716483038023,-323.3383626,0.00023697,2]
[327789972,1716483039114,-526.6990713,0.00023697,2]
[327789973,1716483039126,-2984.7312504,0.00023697,2]
[327789974,1716483039159,-977.69249947,0.00023697,2]
[327789975,1716483039172,-708.7166173,0.00023697,2]
[327789976,1716483039184,-1463.083946,0.00023697,2]
[327789977,1716483039195,-34341.5,0.00023697,2]
[327789981,1716483041135,-150.756,0.00022789,2]
[327789982,1716483041145,-6641.344,0.00023697,2]
[327789983,1716483041156,-250.79540976,0.00023697,2]
[327789984,1716483041167,-681.22282,0.00023697,2]
[327789985,1716483041198,-798.18993,0.00023697,2]
[327789986,1716483041209,-6182.92365306,0.00023697,2]
[327789998,1716483042976,-1190.83472519,0.00023697,2]
[327789999,1716483042986,-9310.52607482,0.0002372,2]
[327790000,1716483043443,-4357.36286172,0.0002372,2]
[327790001,1716483043480,-15706.84274652,0.0002372,2]
[327790002,1716483043492,-3822.15745966,0.0002372,2]
[327790057,1716483046114,-160.09,0.00022789,2]
[327790058,1716483046124,-151.407,0.00022789,2]
[327790059,1716483046133,-4.65939526,0.00022789,2]
[327790060,1716483046291,-145.34060474,0.00022789,2]
[327790062,1716483046300,-1744.07939526,0.0002372,2]
[327790065,1716483046312,-575.65042098,0.0002372,2]
[327790115,1716483219130,2219.96397185,0.00016695,5]
[327790116,1716483233325,500.0,0.000247,120]
[327790169,1716483433284,152.27,0.00027068,30]
[327790170,1716483471580,195.3,0.00013973,2]
[327790171,1716483518648,2750.0,0.0002,2]
[327790172,1716483602476,282.62961632,0.0002,2]
[327790173,1716483936295,152.27,0.00027068,30]
[327790497,1716484232796,-789.65,0.00020102,2]
[327790498,1716484232806,-364.25392012,0.000203,3]
[327790499,1716484232818,-1073.74607988,0.000203,3]
[327790500,1716484232827,-195.3,0.00020447,2]
[327790501,1716484232838,-130.95392012,0.00021,2]
[327790502,1716484232855,-679.1785,0.00021,2]
[327790503,1716484232867,-7615.9890793,0.00021,2]
[327790504,1716484232876,-2000.0,0.00021976,2]
[327790505,1716484232887,-250.0,0.00021982,2]
[327790506,1716484232896,-1646.26405564,0.00021982,2]
[327790507,1716484232914,-71.82594436,0.00021982,2]
[327790508,1716484232924,-358.04830754,0.00022,2]
[327790509,1716484232938,-2441.95169246,0.00022,2]
[327790510,1716484232948,-153.92769206,0.00022059,2]
[327790511,1716484232958,-155.22,0.00022134,2]
[327790512,1716484232968,-222.74,0.00022176,2]
[327790513,1716484232977,-153.92769206,0.0002227,2]
[327790514,1716484232987,-789.65,0.00022366,2]
[327790515,1716484232996,-155.08702744,0.00022408,2]
[327790516,1716484233006,-167.99941387,0.00022563,2]
[327790517,1716484233015,-153.92769206,0.00022642,2]
[327790518,1716484233025,-1000.0,0.00022662,2]
[327790519,1716484233034,-150.0,0.00022789,2]
[327790520,1716484233044,-150.2,0.00022789,2]
[327790521,1716484233054,-150.0,0.00022789,2]
[327790522,1716484233065,-167.0,0.00022809,2]
[327790523,1716484233075,-214.5,0.00022944,2]
[327790524,1716484233084,-153.92769206,0.00022978,2]
[327790525,1716484233094,-171.0,0.00023,2]
[327790526,1716484233103,-153.92769206,0.00023087,2]
[327790527,1716484233113,-233.348649,0.00023356,2]
[327790528,1716484233122,-150.0,0.00023412,2]
[327790529,1716484233131,-1108.18187,0.0002348,2]
[327790530,1716484233140,-1000.0,0.000236,2]
[327790531,1716484233150,-153.92769206,0.00023638,2]
[327790532,1716484233162,-778.0,0.000237,2]
[327790533,1716484233172,-168.73715166,0.000237,2]
[327790534,1716484233182,-170.28128055,0.000237,2]
[327790535,1716484233191,-1587.0982,0.0002372,2]
[327790536,1716484233201,-326.97343523,0.0002372,2]
[327790539,1716484233446,-4629.94797778,0.0002372,2]
[327790540,1716484233456,-170.28128052,0.00023748,2]
[327790541,1716484233466,-153.92769206,0.00023767,2]
[327790542,1716484233476,-800.0,0.00023781,2]
[327790543,1716484233485,-170.28128052,0.00023795,2]
[327790544,1716484233494,-165.0,0.00023799,2]
[327790545,1716484233504,-500.0,0.00023799,2]
[327790546,1716484233514,-500.0,0.00023799,2]
[327790547,1716484233523,-500.0,0.00023799,2]
[327790548,1716484233532,-6156.56,0.00023799,2]
[327790549,1716484233541,-500.0,0.00023799,2]
[327790550,1716484233550,-500.0,0.00023799,2]
[327790551,1716484233559,-500.0,0.00023799,2]
[327790552,1716484233569,-500.0,0.00023799,2]
[327790553,1716484233578,-500.0,0.00023799,2]
[327790554,1716484233587,-231.13740521,0.00023799,2]
[327790555,1716484233596,-500.0,0.00023799,2]
[327790556,1716484233606,-702.03,0.00023799,2]
[327790557,1716484233615,-500.0,0.00023799,2]
[327790558,1716484233624,-500.0,0.00023799,2]
[327790559,1716484233634,-186.36295258,0.00023799,2]
[327790560,1716484233643,-500.0,0.00023799,2]
[327790561,1716484233653,-500.0,0.00023799,2]
[327790562,1716484233662,-922.42,0.00023799,2]
[327790563,1716484233672,-500.0,0.00023799,2]
[327790564,1716484233682,-500.0,0.00023799,2]
[327790565,1716484233691,-524.69,0.00023799,2]
[327790566,1716484233700,-500.0,0.00023799,2]
[327790567,1716484233709,-664.04,0.00023799,2]
[327790568,1716484233720,-500.0,0.00023799,2]
[327790569,1716484233730,-500.0,0.00023799,2]
[327790570,1716484233739,-500.0,0.00023799,2]
[327790571,1716484233748,-500.0,0.00023799,2]
[327790572,1716484233758,-1161.68,0.00023799,2]
[327790573,1716484233767,-500.0,0.00023799,2]
[327790574,1716484233777,-500.17,0.00023799,2]
[327790575,1716484233786,-522.02,0.00023799,2]
[327790576,1716484233795,-500.0,0.00023799,2]
[327790577,1716484233805,-522.85,0.00023799,2]
[327790578,1716484233815,-702.87,0.00023799,2]
[327790579,1716484233824,-830.92,0.00023799,2]
[327790580,1716484233834,-500.0,0.00023799,2]
[327790581,1716484233844,-710.84,0.00023799,2]
[327790582,1716484233858,-500.0,0.00023799,2]
[327790583,1716484233867,-613.37,0.00023799,2]
[327790584,1716484233877,-1311.48,0.00023799,2]
[327790585,1716484233887,-511.44,0.00023799,2]
[327790586,1716484233896,-985.1,0.00023799,2]
[327790587,1716484233906,-873.96,0.00023799,2]
[327790588,1716484233915,-521.61,0.00023799,2]
[327790589,1716484233927,-500.0,0.00023799,2]
[327790590,1716484233936,-500.0,0.00023799,2]
[327790591,1716484233945,-500.0,0.00023799,2]
[327790592,1716484233955,-500.0,0.00023799,2]
[327790593,1716484233965,-500.0,0.00023799,2]
[327790594,1716484233984,-6054.2895,0.000238,2]
[327790595,1716484234004,-22109.78896643,0.000238,2]
[327790596,1716484234030,-4900.97442763,0.000238,2]
[327790597,1716484234047,-2657.30624144,0.000238,2]
[327790598,1716484234081,-1071.32430337,0.000238,2]
[327790599,1716484234092,-829.59060237,0.000238,2]
[327790600,1716484234104,-857.74670121,0.000238,2]
[327790601,1716484234115,-9511.23617097,0.000238,2]
[327790602,1716484234125,-1356.47305765,0.000238,2]
[327790603,1716484234137,-992.484,0.000238,2]
[327790604,1716484234148,-9537.20559311,0.000238,2]
[327790605,1716484234158,-17661.79894053,0.000238,2]
[327790607,1716484238264,-995.13401984,0.00022977,2]
[327790608,1716484238277,-4.86598016,0.00022977,2]
[327790609,1716484238287,-1374.40932303,0.000238,2]
[327790640,1716484241605,-708.41,0.00023799,2]
[327790641,1716484241616,-177139.66167226,0.000238,2]
[327790642,1716484241626,-1000.0,0.0002382,2]
[327790643,1716484241635,-875.0,0.0002382,2]
[327790644,1716484241645,-500.0,0.0002382,2]